[Event "Titled Tuesday Blitz April 25 Early 2023"]
[White "Ronka, Erik"]
[Black "Gatterer, Florian"]
[WhiteFideId "505080"]
[BlackFideId "811688"]
[WhiteElo "2264"]
[BlackElo "2221"]
[Result "1/2-1/2"]
[Round "03"]
[TimeControl "180+2"]
[Date "2023.04.25"]
[WhiteClock "0:00:56"]
[BlackClock "0:00:27"]

1. e4 {[%clk 0:03:00]}  c5 {[%clk 0:02:59]} 2. Nf3 {[%clk 0:03:01]}  e6 {[%clk 0:03:00]} 3. g3 {[%clk 0:03:00]}  d5 {[%clk 0:02:59]} 4. exd5 {[%clk 0:03:01]}  exd5 {[%clk 0:02:59]} 5. d4 {[%clk 0:03:02]}  Nf6 {[%clk 0:02:58]} 6. Bg2 {[%clk 0:03:02]}  Be7 {[%clk 0:02:57]} 7. O-O {[%clk 0:03:02]}  O-O {[%clk 0:02:55]} 8. Nc3 {[%clk 0:03:00]}  Nc6 {[%clk 0:02:53]} 9. h3 {[%clk 0:02:58]}  h6 {[%clk 0:02:50]} 10. Be3 {[%clk 0:02:35]}  cxd4 {[%clk 0:02:48]} 11. Nxd4 {[%clk 0:02:36]}  Bb4 {[%clk 0:02:44]} 12. Nce2 {[%clk 0:02:32]}  Re8 {[%clk 0:02:42]} 13. Nf4 {[%clk 0:02:22]}  Ne5 {[%clk 0:01:53]} 14. c3 {[%clk 0:02:15]}  Bf8 {[%clk 0:01:49]} 15. b3 {[%clk 0:02:14]}  Nc6 {[%clk 0:01:41]} 16. Nxc6 {[%clk 0:02:07]}  bxc6 {[%clk 0:01:41]} 17. c4 {[%clk 0:02:07]}  Bb7 {[%clk 0:01:40]} 18. cxd5 {[%clk 0:01:55]}  Nxd5 {[%clk 0:01:34]} 19. Nxd5 {[%clk 0:01:55]}  cxd5 {[%clk 0:01:35]} 20. Bd4 {[%clk 0:01:53]}  Qa5 {[%clk 0:01:20]} 21. Qg4 {[%clk 0:01:41]}  Bc8 {[%clk 0:01:19]} 22. Qf3 {[%clk 0:01:40]}  Be6 {[%clk 0:01:19]} 23. a3 {[%clk 0:01:34]}  Rac8 {[%clk 0:01:16]} 24. b4 {[%clk 0:01:33]}  Qa4 {[%clk 0:01:16]} 25. Qd3 {[%clk 0:01:30]}  a5 {[%clk 0:01:12]} 26. bxa5 {[%clk 0:01:27]}  Qxa5 {[%clk 0:01:12]} 27. Rac1 {[%clk 0:01:26]}  Rxc1 {[%clk 0:01:04]} 28. Rxc1 {[%clk 0:01:27]}  Qxa3 {[%clk 0:01:04]} 29. Rc3 {[%clk 0:01:27]}  Qa4 {[%clk 0:00:55]} 30. Kh2 {[%clk 0:01:26]}  Qa8 {[%clk 0:00:54]} 31. Qf3 {[%clk 0:01:17]}  Rc8 {[%clk 0:00:52]} 32. Re3 {[%clk 0:01:15]}  Qc6 {[%clk 0:00:50]} 33. Rc3 {[%clk 0:01:11]}  Qd7 {[%clk 0:00:50]} 34. Re3 {[%clk 0:01:10]}  Rc4 {[%clk 0:00:49]} 35. Rd3 {[%clk 0:01:10]}  Rc8 {[%clk 0:00:48]} 36. Rd2 {[%clk 0:01:09]}  Qc6 {[%clk 0:00:48]} 37. Qf4 {[%clk 0:01:09]}  Qd7 {[%clk 0:00:45]} 38. Re2 {[%clk 0:01:09]}  Rc4 {[%clk 0:00:43]} 39. Qe3 {[%clk 0:01:08]}  Rc8 {[%clk 0:00:39]} 40. Ra2 {[%clk 0:01:08]}  Qb5 {[%clk 0:00:37]} 41. Ra7 {[%clk 0:01:07]}  Bc5 {[%clk 0:00:35]} 42. Ra1 {[%clk 0:00:57]}  Bxd4 {[%clk 0:00:34]} 43. Qxd4 {[%clk 0:00:58]}  Qc5 {[%clk 0:00:34]} 44. Qf4 {[%clk 0:00:57]}  Qc7 {[%clk 0:00:31]} 45. Qe3 {[%clk 0:00:56]}  Qc3 {[%clk 0:00:28]} 46. Qa7 {[%clk 0:00:56]}  Qc7 {[%clk 0:00:27]} 1/2-1/2


[Site "https://www.chess.com"]

[Event "Titled Tuesday Blitz April 25 Early 2023"]
[White "Kuzmin, Roman"]
[Black "Orujov2008"]
[WhiteFideId "44134932"]
[WhiteElo "2192"]
[BlackElo "2402"]
[Result "0-1"]
[Round "03"]
[TimeControl "180+2"]
[Date "2023.04.25"]
[WhiteClock "0:00:29"]
[BlackClock "0:00:07"]

1. e4 {[%clk 0:02:55]}  e5 {[%clk 0:03:00]} 2. Nf3 {[%clk 0:02:55]}  Nf6 {[%clk 0:03:00]} 3. Nxe5 {[%clk 0:02:55]}  Nxe4 {[%clk 0:03:00]} 4. Qe2 {[%clk 0:02:54]}  Qe7 {[%clk 0:03:00]} 5. Qxe4 {[%clk 0:02:54]}  d6 {[%clk 0:03:01]} 6. d4 {[%clk 0:02:54]}  dxe5 {[%clk 0:03:01]} 7. dxe5 {[%clk 0:02:55]}  Nc6 {[%clk 0:03:01]} 8. Bf4 {[%clk 0:02:52]}  g5 {[%clk 0:02:54]} 9. Bg3 {[%clk 0:02:51]}  f5 {[%clk 0:02:54]} 10. Qf3 {[%clk 0:02:23]}  f4 {[%clk 0:02:52]} 11. Bc4 {[%clk 0:02:24]}  Nxe5 {[%clk 0:02:35]} 12. Qh5+ {[%clk 0:02:23]}  Ng6+ {[%clk 0:02:35]} 13. Kd1 {[%clk 0:02:22]}  Qd6+ {[%clk 0:02:12]} 14. Nd2 {[%clk 0:02:22]}  fxg3 {[%clk 0:01:51]} 15. Re1+ {[%clk 0:02:22]}  Be7 {[%clk 0:01:49]} 16. hxg3 {[%clk 0:02:15]}  Bd7 {[%clk 0:01:31]} 17. Qxg5 {[%clk 0:02:07]}  O-O-O {[%clk 0:01:26]} 18. Qe3 {[%clk 0:02:07]}  Bf6 {[%clk 0:01:15]} 19. Bd3 {[%clk 0:02:04]}  Kb8 {[%clk 0:01:11]} 20. Ne4 {[%clk 0:01:55]}  Qe7 {[%clk 0:01:04]} 21. Qd2 {[%clk 0:01:47]}  Bc6 {[%clk 0:00:57]} 22. f3 {[%clk 0:01:42]}  Ne5 {[%clk 0:00:46]} 23. Ke2 {[%clk 0:01:37]}  Bxe4 {[%clk 0:00:38]} 24. fxe4 {[%clk 0:01:34]}  Nxd3 {[%clk 0:00:38]} 25. cxd3 {[%clk 0:01:35]}  Rhf8 {[%clk 0:00:37]} 26. Rf1 {[%clk 0:01:29]}  Bd4 {[%clk 0:00:37]} 27. Rf3 {[%clk 0:01:22]}  Rxf3 {[%clk 0:00:32]} 28. gxf3 {[%clk 0:01:23]}  Rg8 {[%clk 0:00:31]} 29. Qf4 {[%clk 0:01:13]}  Be5 {[%clk 0:00:20]} 30. Qf5 {[%clk 0:01:08]}  Rxg3 {[%clk 0:00:19]} 31. f4 {[%clk 0:01:07]}  Bd4 {[%clk 0:00:16]} 32. Rh1 {[%clk 0:00:58]}  Rg2+ {[%clk 0:00:16]} 33. Kf3 {[%clk 0:00:55]}  Rf2+ {[%clk 0:00:15]} 34. Kg3 {[%clk 0:00:55]}  Qg7+ {[%clk 0:00:11]} 35. Qg5 {[%clk 0:00:56]}  Qxg5+ {[%clk 0:00:11]} 36. fxg5 {[%clk 0:00:57]}  Rf7 {[%clk 0:00:12]} 37. b3 {[%clk 0:00:37]}  Kc8 {[%clk 0:00:12]} 38. Rc1 {[%clk 0:00:36]}  Kd7 {[%clk 0:00:11]} 39. Kg4 {[%clk 0:00:36]}  Rg7 {[%clk 0:00:08]} 40. Rh1 {[%clk 0:00:29]}  Be3 {[%clk 0:00:07]} 41. Rh5 {[%clk 0:00:29]}  h6 {[%clk 0:00:05]} 42. Rxh6 {[%clk 0:00:30]}  Rxg5+ {[%clk 0:00:06]} 43. Kf3 {[%clk 0:00:30]}  Rg3+ {[%clk 0:00:06]} 44. Kxg3 {[%clk 0:00:31]}  Bxh6 {[%clk 0:00:07]} 45. d4 {[%clk 0:00:31]}  Bg7 {[%clk 0:00:06]} 46. d5 {[%clk 0:00:32]}  Kd6 {[%clk 0:00:06]} 47. Kf4 {[%clk 0:00:32]}  Be5+ {[%clk 0:00:06]} 48. Ke3 {[%clk 0:00:33]}  Bg7 {[%clk 0:00:04]} 49. Kf4 {[%clk 0:00:32]}  b6 {[%clk 0:00:04]} 50. Kf5 {[%clk 0:00:29]}  a5 {[%clk 0:00:04]} 51. a4 {[%clk 0:00:28]}  Kc5 {[%clk 0:00:04]} 52. Ke6 {[%clk 0:00:26]}  Kb4 {[%clk 0:00:04]} 53. e5 {[%clk 0:00:24]}  Kxb3 {[%clk 0:00:04]} 54. d6 {[%clk 0:00:24]}  cxd6 {[%clk 0:00:03]} 55. exd6 {[%clk 0:00:25]}  Bh6 {[%clk 0:00:03]} 56. Kf5 {[%clk 0:00:22]}  Bf8 {[%clk 0:00:04]} 57. d7 {[%clk 0:00:22]}  Be7 {[%clk 0:00:04]} 58. Ke6 {[%clk 0:00:23]}  Bd8 {[%clk 0:00:05]} 59. Kd5 {[%clk 0:00:24]}  Kxa4 {[%clk 0:00:05]} 60. Kc6 {[%clk 0:00:25]}  b5 {[%clk 0:00:06]} 61. Kb7 {[%clk 0:00:25]}  b4 {[%clk 0:00:07]} 62. Kc8 {[%clk 0:00:26]}  Bh4 {[%clk 0:00:07]} 63. Kc7 {[%clk 0:00:27]}  b3 {[%clk 0:00:07]} 64. Kc8 {[%clk 0:00:27]}  b2 {[%clk 0:00:07]} 65. d8=Q {[%clk 0:00:28]}  Bxd8 {[%clk 0:00:07]} 66. Kd7 {[%clk 0:00:29]}  b1=Q {[%clk 0:00:07]} 0-1


[Site "https://www.chess.com"]

[Event "Titled Tuesday Blitz April 25 Early 2023"]
[White "Tarasova, Viktoriya"]
[Black "koncheto"]
[WhiteFideId "4175840"]
[WhiteElo "2182"]
[BlackElo "2502"]
[Result "0-1"]
[Round "03"]
[TimeControl "180+2"]
[Date "2023.04.25"]
[WhiteClock "0:00:20"]
[BlackClock "0:00:52"]

1. d4 {[%clk 0:03:00]}  Nf6 {[%clk 0:02:59]} 2. c4 {[%clk 0:03:00]}  e6 {[%clk 0:03:00]} 3. Nc3 {[%clk 0:03:00]}  c5 {[%clk 0:03:01]} 4. d5 {[%clk 0:03:00]}  exd5 {[%clk 0:03:02]} 5. cxd5 {[%clk 0:02:59]}  d6 {[%clk 0:03:02]} 6. Nf3 {[%clk 0:03:00]}  g6 {[%clk 0:03:03]} 7. Bf4 {[%clk 0:02:59]}  a6 {[%clk 0:03:03]} 8. a4 {[%clk 0:02:59]}  Qe7 {[%clk 0:02:55]} 9. h3 {[%clk 0:02:49]}  Bg7 {[%clk 0:02:52]} 10. e3 {[%clk 0:02:49]}  O-O {[%clk 0:02:52]} 11. Nd2 {[%clk 0:02:48]}  Nbd7 {[%clk 0:02:50]} 12. Be2 {[%clk 0:02:48]}  Ne8 {[%clk 0:02:41]} 13. O-O {[%clk 0:02:48]}  f5 {[%clk 0:02:36]} 14. Qc2 {[%clk 0:02:47]}  Nc7 {[%clk 0:02:36]} 15. Rfe1 {[%clk 0:02:44]}  Ne5 {[%clk 0:02:36]} 16. Bh2 {[%clk 0:02:43]}  Bd7 {[%clk 0:02:33]} 17. a5 {[%clk 0:02:42]}  Bb5 {[%clk 0:02:32]} 18. Nxb5 {[%clk 0:02:41]}  axb5 {[%clk 0:02:31]} 19. Bf1 {[%clk 0:02:38]}  Nxd5 {[%clk 0:02:13]} 20. Bxb5 {[%clk 0:02:35]}  Nb4 {[%clk 0:02:10]} 21. Qb3+ {[%clk 0:02:34]}  Kh8 {[%clk 0:02:09]} 22. Red1 {[%clk 0:02:16]}  d5 {[%clk 0:01:46]} 23. Nf1 {[%clk 0:01:35]}  c4 {[%clk 0:01:42]} 24. Qa4 {[%clk 0:01:34]}  Ned3 {[%clk 0:01:34]} 25. b3 {[%clk 0:01:28]}  Nb2 {[%clk 0:01:21]} 26. Qa3 {[%clk 0:01:26]}  Nxd1 {[%clk 0:01:20]} 27. Rxd1 {[%clk 0:01:25]}  Qc5 {[%clk 0:01:21]} 28. bxc4 {[%clk 0:01:18]}  dxc4 {[%clk 0:01:16]} 29. Qa4 {[%clk 0:01:11]}  Nd3 {[%clk 0:01:14]} 30. Rxd3 {[%clk 0:01:01]}  cxd3 {[%clk 0:01:11]} 31. Bxd3 {[%clk 0:01:02]}  Rxa5 {[%clk 0:01:10]} 32. Qd7 {[%clk 0:00:54]}  Qd5 {[%clk 0:01:09]} 33. Qxd5 {[%clk 0:00:35]}  Rxd5 {[%clk 0:01:09]} 34. Bc4 {[%clk 0:00:35]}  Rc5 {[%clk 0:01:08]} 35. Be2 {[%clk 0:00:31]}  Be5 {[%clk 0:01:09]} 36. f4 {[%clk 0:00:26]}  Bf6 {[%clk 0:01:02]} 37. g4 {[%clk 0:00:26]}  b5 {[%clk 0:01:02]} 38. gxf5 {[%clk 0:00:26]}  gxf5 {[%clk 0:01:03]} 39. Kf2 {[%clk 0:00:22]}  b4 {[%clk 0:01:03]} 40. Nd2 {[%clk 0:00:20]}  Rc2 {[%clk 0:00:52]} 41. Nb3 {[%clk 0:00:20]}  Rc3 {[%clk 0:00:51]} 42. Na5 {[%clk 0:00:20]}  b3 {[%clk 0:00:51]} 43. Nxb3 {[%clk 0:00:20]}  Rxb3 {[%clk 0:00:52]} 0-1


[Site "https://www.chess.com"]

[Event "Titled Tuesday Blitz April 25 Early 2023"]
[White "Baches Garcia, Guillermo"]
[Black "Rychkov, Roman"]
[WhiteFideId "2209764"]
[BlackFideId "30985595"]
[WhiteElo "2473"]
[BlackElo "1946"]
[Result "1/2-1/2"]
[Round "03"]
[TimeControl "180+2"]
[Date "2023.04.25"]
[WhiteClock "0:00:42"]
[BlackClock "0:00:38"]

1. e4 {[%clk 0:03:00]}  e5 {[%clk 0:03:00]} 2. Nf3 {[%clk 0:03:01]}  Nc6 {[%clk 0:03:01]} 3. Nc3 {[%clk 0:03:01]}  Nf6 {[%clk 0:03:01]} 4. d4 {[%clk 0:03:02]}  exd4 {[%clk 0:03:01]} 5. Nxd4 {[%clk 0:03:03]}  Bb4 {[%clk 0:03:02]} 6. Nxc6 {[%clk 0:03:03]}  bxc6 {[%clk 0:03:03]} 7. Bd3 {[%clk 0:03:04]}  d5 {[%clk 0:03:04]} 8. Bd2 {[%clk 0:03:04]}  O-O {[%clk 0:03:01]} 9. O-O {[%clk 0:03:05]}  Re8 {[%clk 0:02:58]} 10. Nxd5 {[%clk 0:03:04]}  Bxd2 {[%clk 0:02:56]} 11. Nxf6+ {[%clk 0:03:00]}  Qxf6 {[%clk 0:02:57]} 12. Qxd2 {[%clk 0:03:00]}  Qxb2 {[%clk 0:02:57]} 13. f4 {[%clk 0:02:51]}  Qd4+ {[%clk 0:02:54]} 14. Qf2 {[%clk 0:02:43]}  c5 {[%clk 0:02:54]} 15. e5 {[%clk 0:02:32]}  Rb8 {[%clk 0:02:48]} 16. Rad1 {[%clk 0:02:17]}  Qxf2+ {[%clk 0:02:42]} 17. Kxf2 {[%clk 0:02:17]}  Rb2 {[%clk 0:02:40]} 18. Rb1 {[%clk 0:02:12]}  Rxa2 {[%clk 0:02:38]} 19. Ra1 {[%clk 0:02:12]}  Rb2 {[%clk 0:02:08]} 20. Rxa7 {[%clk 0:02:07]}  Bb7 {[%clk 0:02:08]} 21. Rfa1 {[%clk 0:01:44]}  Rb8 {[%clk 0:02:04]} 22. R7a2 {[%clk 0:01:33]}  Rb4 {[%clk 0:02:03]} 23. Ra4 {[%clk 0:01:30]}  Bd5 {[%clk 0:01:47]} 24. g3 {[%clk 0:01:23]}  g6 {[%clk 0:01:34]} 25. Ke3 {[%clk 0:01:21]}  Kf8 {[%clk 0:01:24]} 26. c4 {[%clk 0:01:18]}  Be6 {[%clk 0:01:10]} 27. Ra8 {[%clk 0:01:09]}  Ke7 {[%clk 0:01:04]} 28. Rxb8 {[%clk 0:01:06]}  Rxb8 {[%clk 0:01:04]} 29. Ra5 {[%clk 0:01:06]}  Kd7 {[%clk 0:00:46]} 30. Rxc5 {[%clk 0:01:04]}  Rb2 {[%clk 0:00:46]} 31. Be2 {[%clk 0:00:58]}  Rb3+ {[%clk 0:00:37]} 32. Kd4 {[%clk 0:00:43]}  Rb2 {[%clk 0:00:37]} 33. Ke3 {[%clk 0:00:42]}  Rb3+ {[%clk 0:00:38]} 34. Kd4 {[%clk 0:00:41]}  Rb2 {[%clk 0:00:38]} 35. Ke3 {[%clk 0:00:42]} 1/2-1/2


[Site "https://www.chess.com"]

[Event "Titled Tuesday Blitz April 25 Early 2023"]
[White "Kohler, Aran"]
[Black "Shuvalov, Evgenij"]
[WhiteFideId "1002856"]
[BlackFideId "4187237"]
[WhiteElo "2303"]
[BlackElo "2080"]
[Result "0-1"]
[Round "03"]
[TimeControl "180+2"]
[Date "2023.04.25"]
[WhiteClock "0:00:03"]
[BlackClock "0:01:01"]

1. f3 {[%clk 0:03:00]}  e5 {[%clk 0:02:55]} 2. Nh3 {[%clk 0:02:59]}  d5 {[%clk 0:02:55]} 3. Nf2 {[%clk 0:03:00]}  Nf6 {[%clk 0:02:54]} 4. g3 {[%clk 0:03:00]}  Nc6 {[%clk 0:02:53]} 5. Bg2 {[%clk 0:03:00]}  Bd6 {[%clk 0:02:53]} 6. e3 {[%clk 0:03:00]}  O-O {[%clk 0:02:53]} 7. d3 {[%clk 0:03:00]}  Re8 {[%clk 0:02:51]} 8. c3 {[%clk 0:03:00]}  a5 {[%clk 0:02:51]} 9. O-O {[%clk 0:03:00]}  b6 {[%clk 0:02:50]} 10. Nd2 {[%clk 0:02:59]}  Bb7 {[%clk 0:02:50]} 11. a4 {[%clk 0:02:36]}  Ne7 {[%clk 0:02:50]} 12. Kh1 {[%clk 0:02:31]}  Nf5 {[%clk 0:02:49]} 13. Re1 {[%clk 0:02:24]}  d4 {[%clk 0:02:47]} 14. cxd4 {[%clk 0:02:21]}  exd4 {[%clk 0:02:47]} 15. e4 {[%clk 0:02:22]}  Ne3 {[%clk 0:02:46]} 16. Qb3 {[%clk 0:02:04]}  Nd7 {[%clk 0:02:43]} 17. Rb1 {[%clk 0:01:46]}  Nc5 {[%clk 0:02:42]} 18. Qa2 {[%clk 0:01:43]}  Nc2 {[%clk 0:02:33]} 19. Re2 {[%clk 0:01:43]}  Nb4 {[%clk 0:02:32]} 20. Qa1 {[%clk 0:01:40]}  Nbxd3 {[%clk 0:02:28]} 21. Nxd3 {[%clk 0:01:30]}  Nxd3 {[%clk 0:02:29]} 22. Nc4 {[%clk 0:01:21]}  Bf8 {[%clk 0:02:20]} 23. Rd2 {[%clk 0:01:03]}  Nb4 {[%clk 0:02:15]} 24. b3 {[%clk 0:01:00]}  c5 {[%clk 0:02:10]} 25. Ba3 {[%clk 0:00:50]}  Nc6 {[%clk 0:02:05]} 26. Re1 {[%clk 0:00:38]}  Ne5 {[%clk 0:02:01]} 27. Nxe5 {[%clk 0:00:36]}  Rxe5 {[%clk 0:02:02]} 28. f4 {[%clk 0:00:34]}  Re8 {[%clk 0:02:02]} 29. Qb1 {[%clk 0:00:30]}  Qd7 {[%clk 0:02:00]} 30. e5 {[%clk 0:00:28]}  Bxg2+ {[%clk 0:02:00]} 31. Kxg2 {[%clk 0:00:28]}  Qc6+ {[%clk 0:01:55]} 32. Qe4 {[%clk 0:00:27]}  Qxe4+ {[%clk 0:01:55]} 33. Rxe4 {[%clk 0:00:27]}  f6 {[%clk 0:01:54]} 34. e6 {[%clk 0:00:26]}  f5 {[%clk 0:01:54]} 35. Re1 {[%clk 0:00:26]}  Bd6 {[%clk 0:01:49]} 36. h3 {[%clk 0:00:25]}  Re7 {[%clk 0:01:48]} 37. Rde2 {[%clk 0:00:19]}  Rae8 {[%clk 0:01:48]} 38. Kf3 {[%clk 0:00:16]}  g6 {[%clk 0:01:48]} 39. g4 {[%clk 0:00:16]}  Kg7 {[%clk 0:01:46]} 40. Bc1 {[%clk 0:00:13]}  Kf6 {[%clk 0:01:42]} 41. g5+ {[%clk 0:00:12]}  Kg7 {[%clk 0:01:42]} 42. h4 {[%clk 0:00:11]}  Rc8 {[%clk 0:01:38]} 43. Bd2 {[%clk 0:00:10]}  Rc6 {[%clk 0:01:37]} 44. Bc1 {[%clk 0:00:09]}  Kf8 {[%clk 0:01:28]} 45. Bd2 {[%clk 0:00:08]}  Ke8 {[%clk 0:01:26]} 46. h5 {[%clk 0:00:09]}  Rg7 {[%clk 0:01:23]} 47. hxg6 {[%clk 0:00:08]}  hxg6 {[%clk 0:01:23]} 48. Rh1 {[%clk 0:00:09]}  Ke7 {[%clk 0:01:22]} 49. Rh8 {[%clk 0:00:09]}  Bc7 {[%clk 0:01:21]} 50. Rc8 {[%clk 0:00:09]}  Kd6 {[%clk 0:01:14]} 51. Rf8 {[%clk 0:00:06]}  Re7 {[%clk 0:01:05]} 52. Rf6 {[%clk 0:00:06]}  Kd5 {[%clk 0:01:04]} 53. Rxg6 {[%clk 0:00:07]}  Rcxe6 {[%clk 0:01:03]} 54. Rexe6 {[%clk 0:00:05]}  Rxe6 {[%clk 0:01:04]} 55. Rg7 {[%clk 0:00:03]}  Bd6 {[%clk 0:01:02]} 56. g6 {[%clk 0:00:04]}  c4 {[%clk 0:01:00]} 57. bxc4+ {[%clk 0:00:03]}  Kxc4 {[%clk 0:01:01]} 58. Rg8 {[%clk 0:00:03]}  Kd3 {[%clk 0:01:01]} 0-1


[Site "https://www.chess.com"]

[Event "Titled Tuesday Blitz April 25 Early 2023"]
[White "Kubatko, Ivan"]
[Black "Prieto Aranguren, Alain"]
[WhiteFideId "24111473"]
[BlackFideId "2268906"]
[WhiteElo "2285"]
[BlackElo "2209"]
[Result "1-0"]
[Round "03"]
[TimeControl "180+2"]
[Date "2023.04.25"]
[WhiteClock "0:00:07"]
[BlackClock "0:00:03"]

1. e4 {[%clk 0:03:00]}  c6 {[%clk 0:02:59]} 2. d4 {[%clk 0:03:00]}  d5 {[%clk 0:02:59]} 3. exd5 {[%clk 0:03:01]}  cxd5 {[%clk 0:02:59]} 4. c4 {[%clk 0:03:02]}  Nf6 {[%clk 0:02:58]} 5. Nc3 {[%clk 0:03:02]}  e6 {[%clk 0:02:58]} 6. Nf3 {[%clk 0:02:59]}  Bb4 {[%clk 0:02:58]} 7. cxd5 {[%clk 0:02:59]}  Nxd5 {[%clk 0:02:58]} 8. Bd2 {[%clk 0:02:58]}  Nc6 {[%clk 0:02:56]} 9. Bd3 {[%clk 0:02:58]}  O-O {[%clk 0:02:53]} 10. O-O {[%clk 0:02:58]}  Nf6 {[%clk 0:02:53]} 11. Bg5 {[%clk 0:02:58]}  h6 {[%clk 0:02:49]} 12. Bh4 {[%clk 0:02:57]}  Be7 {[%clk 0:02:49]} 13. a3 {[%clk 0:02:50]}  Nd5 {[%clk 0:02:49]} 14. Bg3 {[%clk 0:02:46]}  b6 {[%clk 0:02:41]} 15. Re1 {[%clk 0:02:33]}  Nxc3 {[%clk 0:02:38]} 16. bxc3 {[%clk 0:02:32]}  Bb7 {[%clk 0:02:38]} 17. Bc2 {[%clk 0:02:13]}  Rc8 {[%clk 0:02:38]} 18. Qd3 {[%clk 0:02:13]}  g6 {[%clk 0:02:38]} 19. Rxe6 {[%clk 0:02:04]}  Bf6 {[%clk 0:02:27]} 20. Bh4 {[%clk 0:01:32]}  Ne5 {[%clk 0:01:22]} 21. dxe5 {[%clk 0:00:16]}  Qxd3 {[%clk 0:01:21]} 22. Bxd3 {[%clk 0:00:17]}  Bxh4 {[%clk 0:00:47]} 23. Rd6 {[%clk 0:00:17]}  Bxf3 {[%clk 0:00:42]} 24. gxf3 {[%clk 0:00:16]}  Rxc3 {[%clk 0:00:40]} 25. Be4 {[%clk 0:00:14]}  Be7 {[%clk 0:00:32]} 26. Rd7 {[%clk 0:00:13]}  Bc5 {[%clk 0:00:32]} 27. a4 {[%clk 0:00:10]}  a5 {[%clk 0:00:29]} 28. Bd5 {[%clk 0:00:05]}  Rc2 {[%clk 0:00:25]} 29. Rf1 {[%clk 0:00:05]}  h5 {[%clk 0:00:20]} 30. f4 {[%clk 0:00:06]}  h4 {[%clk 0:00:19]} 31. Kg2 {[%clk 0:00:06]}  Kg7 {[%clk 0:00:13]} 32. Kf3 {[%clk 0:00:06]}  Kh6 {[%clk 0:00:12]} 33. Kg4 {[%clk 0:00:07]}  Bxf2 {[%clk 0:00:10]} 34. Rxf7 {[%clk 0:00:07]}  Rxf7 {[%clk 0:00:10]} 35. Bxf7 {[%clk 0:00:08]}  Bc5 {[%clk 0:00:09]} 36. f5 {[%clk 0:00:03]}  gxf5+ {[%clk 0:00:06]} 37. Kxf5 {[%clk 0:00:04]}  Rxh2 {[%clk 0:00:05]} 38. Ke6 {[%clk 0:00:04]}  Re2 {[%clk 0:00:04]} 39. Rf6+ {[%clk 0:00:04]}  Kg5 {[%clk 0:00:04]} 40. Rg6+ {[%clk 0:00:04]}  Kf4 {[%clk 0:00:04]} 41. Rf6+ {[%clk 0:00:03]}  Ke4 {[%clk 0:00:04]} 42. Bg6+ {[%clk 0:00:04]}  Kd4 {[%clk 0:00:03]} 43. Rf5 {[%clk 0:00:04]}  h3 {[%clk 0:00:03]} 44. Rh5 {[%clk 0:00:04]}  h2 {[%clk 0:00:02]} 45. Be8 {[%clk 0:00:03]}  Kc3 {[%clk 0:00:02]} 46. Bb5 {[%clk 0:00:03]}  Kb4 {[%clk 0:00:02]} 47. Bxe2 {[%clk 0:00:03]}  Kxa4 {[%clk 0:00:02]} 48. Bd1+ {[%clk 0:00:04]}  Kb4 {[%clk 0:00:02]} 49. Rxh2 {[%clk 0:00:05]}  a4 {[%clk 0:00:02]} 50. Rh4+ {[%clk 0:00:05]}  Kc3 {[%clk 0:00:02]} 51. Rxa4 {[%clk 0:00:06]}  b5 {[%clk 0:00:02]} 52. Ra8 {[%clk 0:00:06]}  b4 {[%clk 0:00:03]} 53. Kd5 {[%clk 0:00:06]}  Be3 {[%clk 0:00:02]} 54. e6 {[%clk 0:00:06]}  b3 {[%clk 0:00:03]} 55. Bxb3 {[%clk 0:00:07]}  Kxb3 {[%clk 0:00:03]} 56. e7 {[%clk 0:00:07]} 1-0


[Site "https://www.chess.com"]

[Event "Titled Tuesday Blitz April 25 Early 2023"]
[White "Kuchava, Ana"]
[Black "Vivas Zamora, Fabian Ernesto"]
[WhiteFideId "13605348"]
[BlackFideId "3902480"]
[WhiteElo "2001"]
[BlackElo "2262"]
[Result "0-1"]
[Round "03"]
[TimeControl "180+2"]
[Date "2023.04.25"]
[WhiteClock "0:00:01"]
[BlackClock "0:00:04"]

1. d4 {[%clk 0:03:00]}  Nf6 {[%clk 0:02:58]} 2. Nf3 {[%clk 0:02:59]}  g6 {[%clk 0:02:58]} 3. c4 {[%clk 0:02:59]}  Bg7 {[%clk 0:02:59]} 4. Nc3 {[%clk 0:02:56]}  d5 {[%clk 0:02:59]} 5. Bg5 {[%clk 0:02:54]}  Ne4 {[%clk 0:02:58]} 6. Bf4 {[%clk 0:02:53]}  Nxc3 {[%clk 0:02:56]} 7. bxc3 {[%clk 0:02:53]}  c5 {[%clk 0:02:57]} 8. e3 {[%clk 0:02:51]}  O-O {[%clk 0:02:53]} 9. cxd5 {[%clk 0:02:48]}  Qxd5 {[%clk 0:02:49]} 10. Be2 {[%clk 0:02:47]}  cxd4 {[%clk 0:02:48]} 11. cxd4 {[%clk 0:02:47]}  Nc6 {[%clk 0:02:41]} 12. O-O {[%clk 0:02:46]}  Bf5 {[%clk 0:02:32]} 13. Qa4 {[%clk 0:02:45]}  Qa5 {[%clk 0:02:03]} 14. Qb3 {[%clk 0:02:42]}  Qb4 {[%clk 0:01:57]} 15. Rfc1 {[%clk 0:02:39]}  Rac8 {[%clk 0:01:52]} 16. Bc4 {[%clk 0:02:12]}  Qxb3 {[%clk 0:01:38]} 17. axb3 {[%clk 0:02:11]}  Nb4 {[%clk 0:01:30]} 18. h3 {[%clk 0:01:54]}  a6 {[%clk 0:01:23]} 19. Nd2 {[%clk 0:01:13]}  b5 {[%clk 0:01:15]} 20. Be2 {[%clk 0:01:08]}  Nc2 {[%clk 0:00:37]} 21. Rxa6 {[%clk 0:00:34]}  Nxd4 {[%clk 0:00:36]} 22. Re1 {[%clk 0:00:34]}  Nxe2+ {[%clk 0:00:33]} 23. Rxe2 {[%clk 0:00:34]}  Rc1+ {[%clk 0:00:27]} 24. Nf1 {[%clk 0:00:18]}  Bd3 {[%clk 0:00:28]} 25. Rd2 {[%clk 0:00:14]}  Bxf1 {[%clk 0:00:25]} 26. Kh2 {[%clk 0:00:12]}  b4 {[%clk 0:00:25]} 27. Ra7 {[%clk 0:00:11]}  Bc3 {[%clk 0:00:20]} 28. Rdd7 {[%clk 0:00:09]}  Bf6 {[%clk 0:00:20]} 29. Rab7 {[%clk 0:00:06]}  Ba6 {[%clk 0:00:11]} 30. Rxb4 {[%clk 0:00:05]}  Bc8 {[%clk 0:00:11]} 31. Rc7 {[%clk 0:00:05]}  Be6 {[%clk 0:00:11]} 32. Rbb7 {[%clk 0:00:04]}  Rxc7 {[%clk 0:00:11]} 33. Rxc7 {[%clk 0:00:04]}  Bxb3 {[%clk 0:00:10]} 34. Bh6 {[%clk 0:00:04]}  Rd8 {[%clk 0:00:09]} 35. Bf4 {[%clk 0:00:03]}  Kg7 {[%clk 0:00:09]} 36. Bg3 {[%clk 0:00:03]}  h5 {[%clk 0:00:09]} 37. h4 {[%clk 0:00:02]}  Be6 {[%clk 0:00:08]} 38. Rb7 {[%clk 0:00:03]}  Ra8 {[%clk 0:00:08]} 39. e4 {[%clk 0:00:02]}  Ra5 {[%clk 0:00:06]} 40. Rc7 {[%clk 0:00:01]}  Be5 {[%clk 0:00:06]} 41. Bxe5+ {[%clk 0:00:01]}  Rxe5 {[%clk 0:00:07]} 42. f3 {[%clk 0:00:01]}  Ra5 {[%clk 0:00:07]} 43. Rxe7 {[%clk 0:00:01]}  Kf6 {[%clk 0:00:07]} 44. Rc7 {[%clk 0:00:02]}  Ra2 {[%clk 0:00:07]} 45. Kg3 {[%clk 0:00:01]}  Kg7 {[%clk 0:00:05]} 46. Rb7 {[%clk 0:00:01]}  Bc4 {[%clk 0:00:05]} 47. Rc7 {[%clk 0:00:02]}  Bf1 {[%clk 0:00:05]} 48. Kf4 {[%clk 0:00:01]}  Bxg2 {[%clk 0:00:04]} 49. e5 {[%clk 0:00:02]}  Ra3 {[%clk 0:00:03]} 50. e6 {[%clk 0:00:01]}  Rxf3+ {[%clk 0:00:04]} 0-1


[Site "https://www.chess.com"]